Cogmind - Beta 15 @@@ ROGUE MODE // 2025.09.30 @ 07:55:11 Player: nam192 Result: Destroyed by D-53 Grenadier with Mini Grenade Launcher Performance ------------- Evolutions (1) 500 Regions Visited (3) 600 Robots Destroyed (26) 130 Value Destroyed (882) 882 Prototype IDs (2) 40 Alien Tech Used (0) 0 Bonus (0) 0 TOTAL SCORE: 2152 Bonus ------- None Cogmind --------- Core Integrity 0/400 Matter 283/300 Energy 18/100 System Corruption 1% Temperature Cool (9) Movement Core (450) Ox8 Location -9/Mines Parts ------- > --- POWER (2) -------- (None) > --- PROPULSION (2) --- (None) > --- UTILITY (3) ------ Large Storage Unit Utility Shielding > --- WEAPON (2) ------- Improved Light Cannon > --- INVENTORY (15) --- Improved Treads Improved Aluminum Leg Armored Wheel Armored Wheel Beam Rifle Particle Gun Spread Laser Light EM Pulse Cannon Hammer Maul Peak State ------------ > --- POWER ------------ Light Ion Engine Light Nuclear Core > --- PROPULSION ------- Improved Treads Improved Treads > --- UTILITY ---------- Heat Sink Large Storage Unit Utility Shielding > --- WEAPON ----------- Light Assault Rifle Maul > --- INVENTORY -------- Light Ion Engine Improved Ion Engine Improved Treads Aluminum Leg Aluminum Leg Improved Aluminum Leg Armored Wheel Armored Wheel Beam Rifle Particle Gun Spread Laser Light EM Pulse Cannon Light EM Pulse Cannon Hammer [Rating: 16] Favorites ----------- Power Light Nuclear Core Engine Light Ion Engine Power Core Light Nuclear Core Propulsion Improved Treads Treads Improved Treads Leg Aluminum Leg Wheel Wheel Utility Large Storage Unit Device Heat Sink Storage Large Storage Unit Protection Utility Shielding Weapon Light Assault Rifle Energy Gun Small Laser Energy Cannon Light EM Pulse Cannon Ballistic Gun Light Assault Rifle Ballistic Cannon Improved Light Cannon Impact Weapon Maul Build | -11 -10 -9 -9 ------- Run | Yrd Mat Mat Min Slots Evolved 2 | . . 2 . Power 1 | . . 1 . Propulsion . | . . . . Utility 1 | . . 1 . Weapon . | . . . . Parts Attached 27 | 7 8 7 5 Power 6 | 2 1 1 2 Engine 5 | 2 . 1 2 Core 1 | . 1 . . Reactor . | . . . . Propulsion 8 | 2 2 2 2 Treads 4 | 2 . 2 . Leg 3 | . 1 . 2 Wheel 1 | . 1 . . Hover . | . . . . Flight . | . . . . Utility 5 | 1 3 1 . Device 1 | . 1 . . Storage 2 | 1 1 . . Processor . | . . . . Hackware . | . . . . Protection 2 | . 1 1 . Artifact . | . . . . Weapon 8 | 2 2 3 1 Energy Gun 1 | . 1 . . Energy Cannon 1 | . . . 1 Ballistic Gun 3 | 2 1 . . Ballistic Cannon 1 | . . 1 . Launcher . | . . . . Special Weapon . | . . . . Impact Weapon 2 | . . 2 . Slashing Weapon . | . . . . Piercing Weapon . | . . . . Special Melee Weapon . | . . . . Unidentified Prototypes . | . . . . Parts Lost 17 | . 6 6 5 Power 5 | . 1 2 2 Propulsion 6 | . 2 2 2 Utility 2 | . 1 1 . Weapon 4 | . 2 1 1 Highest Loss Streak 5 | . 4 4 5 To Critical Strikes . | . . . . Average Backups 10 | 3 7 12 10 Power 1 | . . 1 . Propulsion 4 | 2 4 5 4 Utility . | . . . . Weapon 3 | . 1 5 6 Tool/Special . | . . . . Unused Backups 11 | . . 3 8 Power . | . . . . Propulsion 7 | . . 3 4 Utility . | . . . . Weapon 4 | . . . 4 Tool/Special . | . . . . Average Slot Usage (%) 78 | . 82 76 78 Engine 7 | . 7 5 17 Core 5 | . 4 7 . Treads 14 | . 16 16 . Leg 3 | . 4 . 17 Wheel 1 | . 4 . . Device 4 | . 1 8 . Storage 11 | . 14 10 11 Protection 5 | . 2 7 11 Energy Gun 5 | . 4 6 . Energy Cannon 1 | . . . 10 Ballistic Gun 11 | . 21 7 . Ballistic Cannon 1 | . . . 11 Impact Weapon 2 | . . 5 . Peak Build Rating 16 | 6 9 16 12 Average Rating 9 | 4 6 11 11 On Entrance 5 | . 6 9 7 Naked Turns . | . . . . Heaviest Build 39 | 13 32 33 39 Greatest Support 46 | 40 40 46 20 Greatest Overweight (x) 9 | . 3 8 9 Average Overweight (x) . | . . . 1 Largest Inventory Capacity 15 | 8 15 15 15 Average Capacity 12 | 7 9 14 15 Most Carried 15 | 6 9 15 15 Average Carried 10 | 3 7 13 10 Final Capacity 15 | 8 15 15 15 Final Carried 14 | 6 7 14 10 Class Distribution -------------------- 100% | Mutant Dominant Class ---------------- Mutant | -10/Materials Mutant | -9/Materials Mutant | -9/Mines Resources | -11 -10 -9 -9 ----------- Run | Yrd Mat Mat Min Matter Collected 628 | 175 203 190 60 Remotely . | . . . . Salvage Created 956 | . 410 423 123 Parts 55 | . 22 21 12 Haulers Intercepted . | . . . . Recyclers Shooed . | . . . . Parts Field Recycled . | . . . . Retrieved Matter . | . . . . Parts Self-Destructed . | . . . . Prevented . | . . . . Kills | -11 -10 -9 -9 ------- Run | Yrd Mat Mat Min Combat Hostiles Destroyed 24 | . 11 10 3 Melee 3 | . . 3 . Guns 15 | . 11 4 . Cannons 3 | . . . 3 Classes Destroyed 6 | . 2 2 2 Tunneler 1 | . . . 1 Watcher 1 | . . 1 . Swarmer 3 | . 3 . . Grunt 16 | . 8 6 2 Sentry 4 | . . 4 . Demolisher 1 | . . . 1 Best Kill Streak 3 | . 3 3 3 Combat Bots Only 3 | . 3 3 2 Max Kills in Single Turn 1 | . 1 1 1 Gunslinging . | . . . . Exploded . | . . . . Melee 1 | . . 1 . Uniques/NPCs Destroyed . | . . . . Combat | -11 -10 -9 -9 -------- Run | Yrd Mat Mat Min Hostile Shots Fired 245 | . 116 103 26 Missed 71 | . 41 24 6 Hits 174 | . 75 79 20 Projectile 174 | . 75 79 20 AOE 11 | . . . 11 Critical Strikes 2 | . . 2 . Damage Taken 2535 | . 966 1030 539 Core 648 | . 241 331 76 Absorbed by Shields . | . . . . Redirected to Shielding 38 | . . 32 6 Regen/Repaired (Parts) 89 | . . 89 . Core Remaining (%) 51 | 100 3 . . Volleys Fired 87 | . 50 28 9 Largest 2 | . 2 2 2 Hottest 89 | . 60 60 89 Shots Fired 148 | . 83 47 18 Gun 130 | . 83 47 . Cannon 18 | . . . 18 Launcher . | . . . . Special . | . . . . Kinetic 118 | . 81 28 9 Thermal 21 | . 2 19 . Explosive . | . . . . Electromagnetic 9 | . . . 9 Robot Hit Streak 10 | . 6 10 5 Robot Miss Streak 5 | . 3 5 5 Penetration Max . | . . . . Secondary Targets 2 | . 2 . . Max Gunslinging Chain 1 | . 1 . . Shots Hit Robots 110 | . 51 51 8 Core Hits 47 | . 26 14 7 Critical Kills . | . . . . Critical Parts Destroyed 5 | . . 5 . Critical Strikes 5 | . . 5 . Smash 5 | . . 5 . Melee Attacks 21 | . . 21 . Impact 21 | . . 21 . Slashing . | . . . . Piercing . | . . . . Sneak Attacks . | . . . . Combat Hostiles . | . . . . Follow-up Attacks . | . . . . Damage Inflicted 1717 | . 525 1007 185 Guns 809 | . 525 284 . Cannons 185 | . . . 185 Explosions . | . . . . Melee 723 | . . 723 . Ramming . | . . . . Kinetic 758 | . 513 162 83 Thermal 134 | . 12 122 . Explosive . | . . . . Electromagnetic 102 | . . . 102 Impact 723 | . . 723 . Slashing . | . . . . Piercing . | . . . . Highest Corruption 1 | . . 1 1 Average Corruption 1 | . . 1 1 Corruption Purged . | . . . . Corruption Blocked . | . . . . Effects 1 | . . . 1 Matter Fused 1 | . . . 1 Overload Shots . | . . . . Overflow Damage 236 | . . 236 . Projectiles . | . . . . Explosions . | . . . . Melee 236 | . . 236 . Knockbacks 6 | . . 6 . Impact 3 | . . 3 . Kinetic . | . . . . Secondary 3 | . . 3 . Self-Inflicted Damage . | . . . . Shots . | . . . . Rammed . | . . . . Targets Rammed . | . . . . Kicked . | . . . . Crushed . | . . . . Highest Temperature 164 | . 19 34 164 Average Temperature 26 | . 9 11 60 Received Heat Transfer 990 | . 477 450 63 Siege Activations . | . . . . Martial Activations . | . . . . Shielding Activations . | . . . . Robots Disrupted . | . . . . Combat Hostiles . | . . . . Robots Corrupted 3 | . . 3 . Combat Hostiles 3 | . . 3 . Parts Fried 1 | . . 1 . Impact Corruptions 11 | . . 11 . Robots Melted . | . . . . Combat Hostiles . | . . . . Parts Melted . | . . . . Heat Transferred 300 | . 25 275 . Parts Sabotaged . | . . . . Parts Stolen . | . . . . Parts Stripped . | . . . . Power Chain Reactions . | . . . . Alert | -11 -10 -9 -9 ------- Run | Yrd Mat Mat Min Maximum Alert Level . | . . . . Low Security (%) 100 | 100 100 100 100 Level 1 . | . . . . Level 2 . | . . . . Level 3 . | . . . . Level 4 . | . . . . Level 5 . | . . . . High Security . | . . . . Max Security . | . . . . Peak Influence 94 | . 90 94 50 Initial 8 | . . . 8 Average 21 | . 28 22 7 Influence Increases 612 | . 270 267 75 Destroy 0b10 Robot/C 480 | . 220 200 60 Destroy 0b10 Robot/NC 10 | . . 5 5 Destroy Leader 122 | . 50 62 10 Influence Decreases 612 | . 270 245 97 Entered New Map 14 | . . . 14 Time Decay 428 | . 210 185 33 Lost Part 170 | . 60 60 50 Squads Dispatched 3 | . 1 2 . Investigation 1 | . . 1 . Extermination . | . . . . Reinforcement 2 | . 1 1 . Assault . | . . . . Garrison . | . . . . Intercept . | . . . . Searches Triggered . | . . . . Construction Impeded . | . . . . Haulers Reinforced . | . . . . Active Scanning Responses . | . . . . Cargo Convoy Interrupts . | . . . . Stealth | -11 -10 -9 -9 --------- Run | Yrd Mat Mat Min Distress Signals 3 | . 2 1 . Communications Jammed . | . . . . Distress Signals . | . . . . Times Spotted 33 | . 15 13 5 Peak Tracking Total 15 | . 4 4 15 Tactical Retreats . | . . . . Traps | -11 -10 -9 -9 ------- Run | Yrd Mat Mat Min Traps Triggered 1 | . . 1 . Indirectly . | . . . . Trap Hack Attempts . | . . . . Triggered . | . . . . Disarmed . | . . . . Reprogrammed . | . . . . Reused . | . . . . Traps Extracted . | . . . . Installed . | . . . . Triggered . | . . . . Machines | -11 -10 -9 -9 ---------- Run | Yrd Mat Mat Min Machines Disabled . | . . . . Max in Single Turn . | . . . . Machines Repaired . | . . . . Machines Dismantled . | . . . . Machines Sabotaged . | . . . . Overloaded Fab Kills . | . . . . Hacking | -11 -10 -9 -9 --------- Run | Yrd Mat Mat Min Machines Accessed 5 | . 3 2 . Terminals 3 | . 2 1 . Fabricators . | . . . . Repair Stations 1 | . . 1 . Recycling Units 1 | . 1 . . Scanalyzers . | . . . . Garrison Access . | . . . . Total Hacks 20 | . 12 8 . Successful 13 | . 9 4 . Failed 7 | . 3 4 . Catastrophic . | . . . . Database Lockouts . | . . . . Manual 1 | . 1 . . Terminals 14 | . 9 5 . Fabricators . | . . . . Repair Stations 3 | . . 3 . Recycling Units 3 | . 3 . . Scanalyzers . | . . . . Garrison Access . | . . . . Terminal Hacks 9 | . 8 1 . Record 5 | . 5 . . Prototype ID Bank 1 | . 1 . . Emergency Access Points 1 | . . 1 . Zone Layout 2 | . 2 . . Fabricator Hacks . | . . . . Repair Station Hacks 3 | . . 3 . Scan Component 2 | . . 2 . Repair 1 | . . 1 . Recycling Unit Hacks 1 | . 1 . . Retrieve Components 1 | . 1 . . Scanalyzer . | . . . . Garrison Access Hacks . | . . . . Unauthorized Hacks . | . . . . Terminals . | . . . . Fabricators . | . . . . Repair Stations . | . . . . Recycling Units . | . . . . Scanalyzers . | . . . . Garrison Access . | . . . . Data Cores Recovered . | . . . . Used . | . . . . Hacking Detections 3 | . 2 1 . Full Trace Events 1 | . . 1 . Feedback Events 1 | . . 1 . Corruption 1 | . . 1 . Feedback Blocked . | . . . . Robot Schematics Acquired . | . . . . Robots Built . | . . . . Authchips . | . . . . Time . | . . . . Total Robot Build Rating . | . . . . Part Schematics Acquired . | . . . . Parts Built . | . . . . Authchips . | . . . . Time . | . . . . Total Part Build Rating . | . . . . Parts Repaired 1 | . . 1 . Time 26 | . . 26 . Parts Recycled . | . . . . Recycled Matter . | . . . . Retrieved Matter . | . . . . Retrieved Components 1 | . 1 . . Parts Scanalyzed . | . . . . Part Schematics Acquired . | . . . . Parts Damaged . | . . . . Bothacking | -11 -10 -9 -9 ------------ Run | Yrd Mat Mat Min Used RIF Installer . | . . . . Robots Hacked . | . . . . Non-combat . | . . . . Combat . | . . . . Robot Hacks Applied . | . . . . Relay Couplers Released . | . . . . Fabnet Peak Effective % . | . . . . Robots Rewired . | . . . . Allies Hacked . | . . . . Hacks Repelled . | . . . . Allies | -11 -10 -9 -9 -------- Run | Yrd Mat Mat Min Total Allies . | . . . . Largest Group . | . . . . Highest-Rated Group . | . . . . Highest-Rated Ally . | . . . . Total Orders . | . . . . Ally Attacks . | . . . . Total Damage . | . . . . Kills . | . . . . Allies Corrupted . | . . . . Allies Melted . | . . . . Intel | -11 -10 -9 -9 ------- Run | Yrd Mat Mat Min Active Infowar (turns) . | . . . . Robot Analysis Total . | . . . . Derelict Logs Recovered . | . . . . Drone Launches . | . . . . Drone Recoveries . | . . . . Exploration | -11 -10 -9 -9 ------------- Run | Yrd Mat Mat Min Turns Passed 1692 | 89 609 829 165 Spaces Moved 831 | 49 358 357 67 Core 71 | 3 27 38 3 Treads 496 | 46 151 299 . Legs 64 | . . . 64 Wheels 200 | . 180 20 . Hover . | . . . . Flight . | . . . . Fastest Speed 50 | 50 80 80 190 Average Speed 162 | 153 130 188 203 Slowest Speed 500 | 160 160 450 500 Overloaded Moves . | . . . . Propulsion Burnouts . | . . . . Robots Hopped . | . . . . Potential Cave-ins . | . . . . Cave-ins Triggered . | . . . . Exploration Rate (%) 21 | 4 41 18 22 Regions Visited 3 Branch Regions 1 Pre-discovered Areas . | . . . . Known Exits Taken . | . . . . Unknown Exits Taken 3 | 1 1 1 . Scrap Searched . | . . . . Spaces Dug . | . . . . Terrain Destroyed . | . . . . Melee . | . . . . Projectile . | . . . . AOE . | . . . . Terrain Rammed . | . . . . Walls Destroyed . | . . . . Machines Disabled . | . . . . Actions | -11 -10 -9 -9 --------- Run | Yrd Mat Mat Min Total 1005 | 60 427 436 82 Wait . | . . . . Move 828 | 48 357 356 67 Hop . | . . . . Pick Up 26 | 5 7 14 . Fast Attach 15 | 6 3 6 . Attach 12 | . 5 2 5 Detach 4 | . 1 2 1 Swap 3 | 1 2 . . Drop 9 | . 2 7 . Fire 87 | . 50 28 9 Melee 21 | . . 21 . Ram . | . . . . Kick . | . . . . Crush . | . . . . Escape Stasis . | . . . . Rewire . | . . . . Trap . | . . . . Miscellaneous . | . . . . Route ------- -11/Scrapyard -10/Materials -9/Materials -9/Mines History --------- Turn | Location | Event 51 | -11/Scrapyard | Discovered new exit (range 15) 90 | -11/Scrapyard | Entered Materials 91 | -10/Materials | Met a group of wandering Federalists 314 | -10/Materials | Build established: Mutant 396 | -10/Materials | Core integrity fell below 50% 473 | -10/Materials | Lost 4 parts (1p2n1w) 477 | -10/Materials | Core integrity fell below 20% 674 | -10/Materials | Discovered new exit (range 16) 699 | -10/Materials | Entered another Materials area 699 | -9/Materials | Evolved 2 slots: Power x1, Utility x1 741 | -9/Materials | Repaired Lrg. Storage Unit 1351 | -9/Materials | Discovered new exit (range 15) 1354 | -9/Materials | Core integrity fell below 50% 1389 | -9/Materials | Lost 4 parts (1p2n1u) 1391 | -9/Materials | Core integrity fell below 20% 1528 | -9/Materials | Entered Mines 1629 | -9/Mines | Assembled infested the area 1693 | -9/Mines | Destroyed by D-53 Grenadier with Mini Grenade Launcher Last Messages --------------- R-06 Scavenger collects Heat Sink. R-06 Scavenger collects Sml. Laser. R-06 Scavenger collects Aluminum Leg. C-30 ARC bursts open, deploying its payload. D-53 Grenadier unfolds itself. Imp. Ion Engine destroyed. Lgt. Ion Engine destroyed. HV Slug penetrates Wall. Aluminum Leg destroyed. T-07 Excavator destroyed. D-53 Grenadier destroyed. The unstable cave ceiling collapses. HV Slug penetrates Wall. System corrupted: Matter fused (-6). The unstable cave ceiling collapses. Aluminum Leg destroyed. HV Slug penetrates as-66023. as-66023 destroyed. HV Slug penetrates Wall. Lgt. EM Pulse Cannon destroyed. Map ----- +----------------------------------------------------+ | ?????????????????????????????????????????????????? | | ?????????????????????????????????????????????????? | | ?????????????????????????????????????????????????? | | ?????????????????????????????????????????????????? | | ?????????????????????????????????????????????????? | | ?????????????????????????????????????????????????? | | ?????????????????????????????????????????????????? | | ?????????????????????????????????????????????????? | | ?????????????????????????????????????????????????? | | ?????????????????????????????????????????????????? | | ????????????????????????? ??????????????????????? | | ????????????????????????? ??????????????????????? | | ????????????????????????? $#?????????????????????? | | ?????????????????????????% #?????????????????????? | | ????????????????????????? ?????????????????????? | | ????????????????????????? #?????????????????????? | | ??????????? ???????????##r ##????????????????????? | | ??????????? ###???????#*% #????????????????????? | | ???????????? $####???#t%d #????????????????????? | | ?????????????# #?##r!% #????????????????????? | | ??????????????# ## % #????????????????????? | | ###????####???# % % ####?????????????????? | | ###### ##??# ## ??????????????????? | | ##??# ##??????????????????? | | #### ##????# #??????????????????? | | #??# #?????# @ # %% %#????????????? | | ! #??# #????## % #????????????? | | #??## ##???## #????????????? | | ##??# ##????# ##????????????? | | #??# ##?????# = ;#?????????????? | | #??# #??????## = ???????????? | | #??# #???????# #####;##;#######??????????? | | #?## #???????# #???? #? #???????????????? | | #?# ##??????# ##???##??##???????????????? | | #?# #####??# #????????????????????????? | | ##?# #### #????????????????????????? | | ###??## #????????????????????????? | | ??????### ##????????????????????????? | | ????????## #########?????????????????????????? | | ?????????#######?????????????????????????????????? | | ?????????????????????????????????????????????????? | | | | | | | | | | | | | | | | | | | +----------------------------------------------------+ Best States ------------- Heat Dissipation 38 Energy Generation 19 Energy Capacity 290 Matter Stores 300 Matter Capacity 300 Sight Range 16 Terrain Scan Density 10 Armor Coverage 150 Utility Shielding 33 Evasion (%) 44 Recoil Reduction 2 Item Schematics ----------------- None Robot Schematics ------------------ None Fabricated ------------ Nothing Repaired ---------- Lrg. Storage Unit | 74% | -9/Materials Alien Tech Used ----------------- None Achievements -------------- Close Call Challenges ------------ None Game ------ Seed TrackerStructuralSource Manual? 0 Play Time 00:17:56 Cumulative 3.6 hours Start 2025.09.30 @ 07:39:28 End 2025.09.30 @ 07:55:11 Sessions 1 Manual Loads 0 Difficulty Rogue Special Mode None Game No. 6 Rogue 3 Adventurer 3 Explorer 0 Win Type - Total 0 Types 0/0/0/0/0/0/0/0/0/0 Lore% 1 Gallery% 9 Achievement% 9 Wizard Run 0 Options --------- Layout 0 ASCII 0 Keyboard 1 Movement Arrows Keybinds 0 Fullscreen 1 Font 24/Smallcaps Map View 76x50 Zoom Use 0% Tactical HUD 0 Map Filters NONE Filters NONE Steam 1 RUN: 2f952983-6efa-437d-a6e4-13dda8750cd7